[Event "FIDE WCCC G12 2018"]
[Site "Santiago de Compostela"]
[Date "2018.11.13"]
[Round "9"]
[White "Minaeva, Juliana"]
[Black "Butenandt, Svenja"]
[Result "0-1"]
[ECO "A45"]
[WhiteElo "1608"]
[BlackElo "1775"]
[Annotator "NA RC"]
[PlyCount "200"]
[EventDate "2018.11.04"]
[EventType "swiss"]
[EventCountry "ESP"]
[SourceTitle "playchess.com"]
[Source "ChessBase"]
[SourceQuality "1"]
[TimeControl "40/5400+30:1800+30"]

1. d4 {[%emt 0:00:00]} Nf6 {[%emt 0:00:00]} 2. Bf4 {[%emt 0:00:00]} e6 {[%emt 0:00:00]} 3. e3 {[%emt 0:00:12]} Be7 {[%emt 0:00:42]} 4. Nf3 {[%emt 0:00:39]} Nh5 {[%emt 0:02:15]} 5. Bg3 {[%emt 0:03:13]} c5 {[%emt 0:01:03]} 6. c3 {[%emt 0:01:09]} d6 {[%emt 0:04:16]} 7. Bd3 {[%emt 0:04:46]} Nd7 {[%emt 0:02:33]} 8. Nbd2 {[%emt 0:03:41]} O-O {[%emt 0:04:03]} 9. O-O {[%emt 0:02:39]} Nxg3 {[%emt 0:00:51]} 10. hxg3 {[%emt 0:00:45]} Nf6 {[%emt 0:02:44]} 11. Qe2 {[%emt 0:05:02]} b6 {[%emt 0:04:06]} 12. a4 {[%emt 0:03:23]} cxd4 {[%emt 0:04:03]} 13. exd4 {[%emt 0:00:52]} Bb7 {[%emt 0:02:43]} 14. Rfe1 {[%emt 0:02:46]} Rc8 {[%emt 0:06:24]} 15. Ng5 {[%emt 0:04:27]} Rc7 {[%emt 0:15:58]} 16. Bc4 {[%emt 0:05:44]} d5 {[%emt 0:04:09]} 17. Bd3 {[%emt 0:01:26]} h6 {[%emt 0:03:44]} 18. Ngf3 {[%emt 0:04:08]} Nd7 {[%emt 0:04:06]} 19. Nf1 {[%emt 0:06:14]} Bd6 {[%emt 0:02:05]} 20. Bb5 {[%emt 0:10:34]} Nb8 {[%emt 0:05:24]} 21. N1d2 {[%emt 0:02:22]} Nc6 {[%emt 0:01:53]} 22. Rad1 {[%emt 0:03:59]} Re7 {[%emt 0:01:40]} 23. Ne5 {[%emt 0:01:26]} Qc7 {[%emt 0:02:10]} 24. Ndf3 {[%emt 0:01:27]} Ra8 {[%emt 0:03:39]} 25. Ba6 {[%emt 0:03:21]} Bxa6 {[%emt 0:03:09]} 26. Qxa6 {[%emt 0:00:05]} Na5 {[%emt 0:00:54]} 27. Qe2 {[%emt 0:01:41]} Rc8 {[%emt 0:00:37]} 28. Nd2 {[%emt 0:01:36]} Nc6 {[%emt 0:01:35]} 29. Qh5 {[%emt 0:03:23]} Qd8 {[%emt 0:03:23]} 30. Ndf3 {[%emt 0:02:44]} Qe8 {[%emt 0:01:26]} 31. g4 {[%emt 0:02:40]} Bxe5 {[%emt 0:03:41]} 32. dxe5 {[%emt 0:01:13]} f6 {[%emt 0:01:30]} 33. exf6 {[%emt 0:01:44]} Qxh5 {[%emt 0:00:05]} 34. gxh5 {[%emt 0:00:16]} gxf6 {[%emt 0:00:09]} 35. Nh4 {[%emt 0:01:29]} Kf7 {[%emt 0:01:05]} 36. Ng6 {[%emt 0:00:51]} Ree8 {[%emt 0:00:20]} 37. f4 {[%emt 0:02:35]} Rcd8 {[%emt 0:01:45]} 38. Kf2 {[%emt 0:01:34]} Na5 {[%emt 0:00:57]} 39. Re2 {[%emt 0:01:45]} Nc4 {[%emt 0:00:31]} 40. b3 {[%emt 0:00:00]} Nd6 {[%emt 0:00:00]} 41. Kf3 {[%emt 0:06:04]} Ne4 {[%emt 0:00:47]} 42. Re3 Nc5 43. Rb1 {[%emt 0:06:08]} Rc8 {[%emt 0:04:56]} 44. Ke2 {[%emt 0:03:31]} Rc7 {[%emt 0:07:28]} 45. Nh4 {[%emt 0:03:48]} Rec8 {[%emt 0:01:14]} 46. Ng6 {[%emt 0:01:21]} Nb7 {[%emt 0:02:20]} 47. Kd2 {[%emt 0:01:47]} Nd6 {[%emt 0:00:22]} 48. Kc2 {[%emt 0:02:41]} Ne4 {[%emt 0:00:14]} 49. c4 {[%emt 0:01:41]} Nd6 {[%emt 0:01:53]} 50. Rd1 {[%emt 0:01:11]} Nf5 {[%emt 0:01:40]} 51. Rc3 {[%emt 0:00:44]} d4 {[%emt 0:01:24]} 52. Rcd3 {[%emt 0:00:21]} Ne3+ {[%emt 0:00:06]} 53. Rxe3 {[%emt 0:00:17]} dxe3 {[%emt 0:00:06]} 54. Re1 {[%emt 0:00:05]} Rd7 {[%emt 0:01:32]} 55. Rxe3 {[%emt 0:00:28]} Rcd8 {[%emt 0:00:08]} 56. Re2 {[%emt 0:00:22]} Rd1 {[%emt 0:01:22]} 57. Rf2 {[%emt 0:01:07]} Rh1 {[%emt 0:00:37]} 58. g4 {[%emt 0:01:00]} Rg1 {[%emt 0:00:29]} 59. f5 {[%emt 0:02:44]} e5 {[%emt 0:01:25]} 60. Re2 {[%emt 0:00:55]} Rxg4 {[%emt 0:00:17]} 61. Kc3 {[%emt 0:01:17]} Rg3+ {[%emt 0:02:41]} 62. Kb4 {[%emt 0:00:19]} a5+ {[%emt 0:01:28]} 63. Kb5 {[%emt 0:00:43]} Rxb3+ {[%emt 0:00:09]} 64. Kc6 {[%emt 0:00:21]} Rd4 {[%emt 0:00:51]} 65. Kb7 {[%emt 0:00:28]} Rxc4 {[%emt 0:01:27]} 66. Rd2 {[%emt 0:00:10]} Rd4 {[%emt 0:00:55]} 67. Rc2 {[%emt 0:00:06]} Rd7+ {[%emt 0:00:07]} 68. Ka6 {[%emt 0:00:32]} Rb4 {[%emt 0:02:58]} 69. Rc8 {[%emt 0:00:22]} Rxa4 {[%emt 0:04:39]} 70. Kxb6 {[%emt 0:00:59]} Rg4 {[%emt 0:05:03]} 71. Rf8+ {[%emt 0:00:16]} Kg7 {[%emt 0:00:07]} 72. Kc6 {[%emt 0:00:10]} Rf7 {[%emt 0:02:07]} 73. Ra8 {[%emt 0:00:54]} Rg5 {[%emt 0:00:44]} 74. Rxa5 {[%emt 0:00:29]} Rxh5 {[%emt 0:00:36]} 75. Kd6 {[%emt 0:00:32]} Rxf5 {[%emt 0:00:26]} 76. Ne7 {[%emt 0:00:08]} Rf1 {[%emt 0:00:21]} 77. Ra8 {[%emt 0:00:12]} Rf8 {[%emt 0:00:46]} 78. Ra3 {[%emt 0:00:17]} Kf7 {[%emt 0:01:01]} 79. Ra7 {[%emt 0:00:27]} Rd1+ {[%emt 0:00:31]} 80. Nd5+ {[%emt 0:00:04]} Kg6 {[%emt 0:00:21]} 81. Rd7 {[%emt 0:00:15]} Rf7 {[%emt 0:01:00]} 82. Rd8 {[%emt 0:00:07]} Ra7 {[%emt 0:00:40]} 83. Ke6 {[%emt 0:00:22]} Ra6+ {[%emt 0:00:07]} 84. Ke7 {[%emt 0:00:07]} Ra7+ {[%emt 0:01:04]} 85. Ke6 {[%emt 0:00:13]} Rd4 {[%emt 0:00:22]} 86. Rg8+ {[%emt 0:00:30]} Rg7 {[%emt 0:00:10]} 87. Ne7+ {[%emt 0:01:05]} Kh7 {[%emt 0:00:22]} 88. Rf8 {[%emt 0:00:18]} Ra4 {[%emt 0:01:04]} 89. Kxf6 {[%emt 0:01:20]} Ra6+ {[%emt 0:00:55]} 90. Kxe5 {[%emt 0:00:27]} Rxe7+ {[%emt 0:00:04]} 91. Kd5 {[%emt 0:00:21]} Kg6 {[%emt 0:00:11]} 92. Rf1 {[%emt 0:00:11]} h5 {[%emt 0:00:08]} 93. Rg1+ {[%emt 0:00:04]} Kh6 {[%emt 0:00:05]} 94. Rh1 {[%emt 0:00:11]} Ra2 {[%emt 0:00:18]} 95. Kd6 {[%emt 0:00:07]} Re3 {[%emt 0:00:05]} 96. Rf1 {[%emt 0:00:13]} Rd2+ {[%emt 0:00:11]} 97. Kc5 {[%emt 0:00:03]} Rc3+ {[%emt 0:00:15]} 98. Kb4 {[%emt 0:00:03]} Rc8 {[%emt 0:00:19]} 99. Kb3 {[%emt 0:00:14]} Rd7 {[%emt 0:00:11]} 100. Rf6+ {[%emt 0:00:05]} Kg5 {[%emt 0:00:03]} 0-1

[Event "FIDE WCCC G12 2018"]
[Site "Santiago de Compostela"]
[Date "2018.11.13"]
[Round "9"]
[White "Cai, Jinru"]
[Black "Wisniowski, Natalie"]
[Result "0-1"]
[ECO "A06"]
[WhiteElo "1578"]
[BlackElo "1504"]
[Annotator "NA RC"]
[PlyCount "102"]
[EventDate "2018.11.04"]
[EventType "swiss"]
[EventCountry "ESP"]
[SourceTitle "playchess.com"]
[Source "ChessBase"]
[SourceQuality "1"]
[TimeControl "40/5400+30:1800+30"]

1. Nf3 {[%emt 0:00:00]} d5 {[%emt 0:00:00]} 2. g3 {[%emt 0:00:00]} Nf6 {[%emt 0:00:00]} 3. Bg2 {[%emt 0:00:00]} c6 {[%emt 0:00:03]} 4. d3 {[%emt 0:00:00]} Bg4 {[%emt 0:00:47]} 5. h3 {[%emt 0:00:05]} Bh5 {[%emt 0:01:19]} 6. Nbd2 {[%emt 0:00:26]} Nbd7 {[%emt 0:01:32]} 7. O-O {[%emt 0:01:31]} e5 {[%emt 0:01:14]} 8. e4 {[%emt 0:02:39]} dxe4 {[%emt 0:01:50]} 9. dxe4 {[%emt 0:00:06]} Bc5 {[%emt 0:01:06]} 10. Qe2 {[%emt 0:04:23]} O-O {[%emt 0:03:31]} 11. g4 {[%emt 0:05:08]} Bg6 {[%emt 0:04:12]} 12. b3 {[%emt 0:08:59]} Qc7 {[%emt 0:05:04]} 13. Bb2 {[%emt 0:02:16]} Rad8 {[%emt 0:05:50]} 14. Nh4 {[%emt 0:03:30]} b5 {[%emt 0:04:49]} 15. Nxg6 {[%emt 0:02:45]} hxg6 {[%emt 0:00:38]} 16. c4 {[%emt 0:02:02]} b4 {[%emt 0:05:10]} 17. Nf3 {[%emt 0:01:44]} a5 {[%emt 0:02:19]} 18. Rfd1 {[%emt 0:02:41]} Rfe8 {[%emt 0:06:47]} 19. Ng5 {[%emt 0:01:34]} Nf8 {[%emt 0:09:29]} 20. Qf3 {[%emt 0:04:05]} Bd4 {[%emt 0:03:02]} 21. Bxd4 {[%emt 0:04:32]} Rxd4 {[%emt 0:00:27]} 22. Qg3 {[%emt 0:09:09]} Qd7 {[%emt 0:03:26]} 23. Bf3 {[%emt 0:01:41]} N8h7 {[%emt 0:04:37]} 24. Nxh7 {[%emt 0:00:31]} Nxh7 {[%emt 0:01:03]} 25. Be2 {[%emt 0:03:23]} Ng5 {[%emt 0:03:35]} 26. f3 {[%emt 0:00:32]} Qa7 {[%emt 0:01:04]} 27. Kg2 {[%emt 0:02:12]} Qc5 {[%emt 0:02:24]} 28. Qf2 {[%emt 0:06:25]} Ne6 {[%emt 0:03:01]} 29. Kg3 {[%emt 0:00:39]} Red8 {[%emt 0:01:35]} 30. Rxd4 {[%emt 0:03:16]} exd4 {[%emt 0:01:43]} 31. Bd3 {[%emt 0:00:37]} Qd6+ {[%emt 0:00:49]} 32. f4 {[%emt 0:01:07]} g5 {[%emt 0:00:28]} 33. e5 {[%emt 0:00:42]} gxf4+ {[%emt 0:01:07]} 34. Kg2 {[%emt 0:00:37]} Qxe5 {[%emt 0:01:08]} 35. Re1 {[%emt 0:00:13]} Qf6 {[%emt 0:01:14]} 36. Re4 {[%emt 0:03:27]} f3+ {[%emt 0:01:37]} 37. Kg3 {[%emt 0:02:19]} Ng5 {[%emt 0:00:56]} 38. Rf4 {[%emt 0:03:21]} Qxf4+ {[%emt 0:01:30]} 39. Kxf4 {[%emt 0:00:10]} Nxh3+ {[%emt 0:00:05]} 40. Kxf3 {[%emt 0:00:00]} Nxf2 {[%emt 0:00:00]} 41. Kxf2 {[%emt 0:00:11]} c5 {[%emt 0:00:31]} 42. Kf3 {[%emt 0:00:31]} Re8 {[%emt 0:00:31]} 43. Be4 {[%emt 0:00:10]} g5 {[%emt 0:03:11]} 44. Bf5 {[%emt 0:00:16]} Kg7 {[%emt 0:00:33]} 45. Kf2 {[%emt 0:00:31]} Kf6 {[%emt 0:00:30]} 46. Kf3 {[%emt 0:00:28]} Re3+ {[%emt 0:00:14]} 47. Kf2 {[%emt 0:00:05]} Ke5 {[%emt 0:00:11]} 48. Bb1 {[%emt 0:00:41]} Kf4 {[%emt 0:00:08]} 49. Bf5 {[%emt 0:00:12]} d3 {[%emt 0:00:15]} 50. Bh7 {[%emt 0:00:10]} d2 {[%emt 0:00:09]} 51. Bc2 {[%emt 0:00:04]} Re1 0-1

[Event "FIDE WCCC G12 2018"]
[Site "Santiago de Compostela"]
[Date "2018.11.13"]
[Round "9"]
[White "Baalla, Nura"]
[Black "Vicze, Kata"]
[Result "0-1"]
[ECO "B32"]
[WhiteElo "1565"]
[BlackElo "1828"]
[Annotator "NA"]
[PlyCount "70"]
[EventDate "2018.11.04"]
[EventType "swiss"]
[EventCountry "ESP"]
[SourceTitle "playchess.com"]
[Source "ChessBase"]
[SourceQuality "1"]
[TimeControl "40/5400+30:1800+30"]

1. e4 {[%emt 0:00:00]} c5 {[%emt 0:00:00]} 2. Nf3 {[%emt 0:00:00]} Nc6 {[%emt 0:00:00]} 3. d4 {[%emt 0:00:00]} cxd4 {[%emt 0:00:04]} 4. Nxd4 {[%emt 0:00:00]} e5 {[%emt 0:00:19]} 5. Nb5 {[%emt 0:00:00]} d6 {[%emt 0:00:20]} 6. c4 {[%emt 0:05:04]} Be7 {[%emt 0:01:22]} 7. f3 {[%emt 0:06:28]} f5 {[%emt 0:09:17]} 8. exf5 {[%emt 0:09:23]} Bxf5 {[%emt 0:02:50]} 9. Bg5 {[%emt 0:05:36]} Nf6 {[%emt 0:08:48]} 10. Bd3 {[%emt 0:06:08]} Bxd3 {[%emt 0:02:54]} 11. Qxd3 {[%emt 0:00:02]} O-O {[%emt 0:01:15]} 12. O-O {[%emt 0:03:01]} a6 {[%emt 0:02:44]} 13. N5c3 {[%emt 0:16:34]} Rc8 {[%emt 0:03:57]} 14. Nd2 {[%emt 0:07:15]} Kh8 {[%emt 0:06:24]} 15. Rfd1 {[%emt 0:08:52]} Nh5 {[%emt 0:09:01]} 16. Bxe7 {[%emt 0:03:27]} Qxe7 {[%emt 0:02:11]} 17. Nde4 {[%emt 0:04:20]} Nd4 {[%emt 0:01:46]} 18. Nd5 {[%emt 0:01:48]} Qe6 {[%emt 0:12:01]} 19. Rac1 {[%emt 0:13:11]} Nf4 {[%emt 0:05:04]} 20. Nxf4 {[%emt 0:00:46]} Rxf4 {[%emt 0:03:04]} 21. b3 {[%emt 0:06:53]} Qg6 {[%emt 0:02:09]} 22. Ng3 {[%emt 0:01:11]} Qh6 {[%emt 0:01:31]} 23. Re1 {[%emt 0:00:56]} b6 {[%emt 0:01:46]} 24. Qe3 {[%emt 0:00:31]} Rcf8 {[%emt 0:01:39]} 25. Ne2 {[%emt 0:00:29]} Nf5 {[%emt 0:05:56]} 26. Qd2 {[%emt 0:00:29]} Rh4 {[%emt 0:01:07]} 27. Qxh6 {[%emt 0:00:02]} Rxh6 {[%emt 0:00:10]} 28. Rcd1 {[%emt 0:00:52]} Rg6 {[%emt 0:00:48]} 29. g3 {[%emt 0:00:39]} Nh4 {[%emt 0:01:01]} 30. Kh1 {[%emt 0:00:28]} Nxf3 {[%emt 0:00:32]} 31. Rf1 {[%emt 0:00:16]} Rgf6 {[%emt 0:02:11]} 32. Nc3 {[%emt 0:00:16]} Nd4 {[%emt 0:01:54]} 33. Rxf6 {[%emt 0:00:07]} Rxf6 {[%emt 0:00:53]} 34. Nd5 {[%emt 0:01:13]} Rf2 {[%emt 0:00:43]} 35. Nxb6 {[%emt 0:00:19]} Nf3 0-1

[Event "FIDE WCCC G12 2018"]
[Site "Santiago de Compostela"]
[Date "2018.11.13"]
[Round "9"]
[White "Schiopu, Oana-Magdalena"]
[Black "Bravo Mallco, Kate Azumi"]
[Result "1-0"]
[ECO "B24"]
[WhiteElo "1526"]
[BlackElo "1698"]
[Annotator "NA RC"]
[PlyCount "93"]
[EventDate "2018.11.04"]
[EventType "swiss"]
[EventCountry "ESP"]
[SourceTitle "playchess.com"]
[Source "ChessBase"]
[SourceQuality "1"]
[TimeControl "40/5400+30:1800+30"]

1. e4 {[%emt 0:00:00]} c5 {[%emt 0:00:00]} 2. Nc3 {[%emt 0:00:00]} Nc6 {[%emt 0:00:00]} 3. Bb5 {[%emt 0:00:16]} Nd4 {[%emt 0:00:14]} 4. Bc4 {[%emt 0:00:36]} g6 {[%emt 0:01:06]} 5. Nge2 {[%emt 0:00:43]} Bg7 {[%emt 0:00:16]} 6. Nxd4 {[%emt 0:02:04]} cxd4 {[%emt 0:00:40]} 7. Qf3 {[%emt 0:02:25]} Nh6 {[%emt 0:09:17]} 8. Ne2 {[%emt 0:02:33]} O-O {[%emt 0:02:06]} 9. O-O {[%emt 0:01:45]} d6 {[%emt 0:02:18]} 10. Qg3 {[%emt 0:06:38]} Ng4 {[%emt 0:11:55]} 11. d3 {[%emt 0:01:29]} Ne5 {[%emt 0:02:16]} 12. Bb3 {[%emt 0:02:03]} a5 {[%emt 0:03:16]} 13. a4 {[%emt 0:01:25]} Nc6 {[%emt 0:01:05]} 14. f4 {[%emt 0:01:16]} e6 {[%emt 0:10:36]} 15. f5 {[%emt 0:14:09]} d5 {[%emt 0:26:56]} 16. exd5 {[%emt 0:04:54]} exd5 {[%emt 0:00:37]} 17. fxg6 {[%emt 0:08:37]} hxg6 {[%emt 0:01:14]} 18. Nf4 {[%emt 0:01:09]} Ne7 {[%emt 0:01:24]} 19. Bd2 {[%emt 0:09:00]} b6 {[%emt 0:01:01]} 20. Rae1 {[%emt 0:00:54]} Bb7 {[%emt 0:01:07]} 21. Nh5 {[%emt 0:00:53]} gxh5 {[%emt 0:06:08]} 22. Bg5 {[%emt 0:02:46]} f6 {[%emt 0:06:50]} 23. Bh6 {[%emt 0:00:12]} Rf7 {[%emt 0:00:23]} 24. Rxf6 {[%emt 0:00:18]} Qf8 {[%emt 0:01:04]} 25. Rxf7 {[%emt 0:01:29]} Qxf7 {[%emt 0:00:43]} 26. Qxg7+ {[%emt 0:00:15]} Qxg7 {[%emt 0:00:30]} 27. Bxg7 {[%emt 0:00:11]} Nf5 {[%emt 0:00:48]} 28. Bf6 {[%emt 0:00:21]} Kf7 {[%emt 0:01:25]} 29. Bg5 {[%emt 0:00:49]} Rg8 {[%emt 0:01:38]} 30. h4 {[%emt 0:01:22]} Re8 {[%emt 0:04:59]} 31. Rxe8 {[%emt 0:00:28]} Kxe8 {[%emt 0:00:02]} 32. Kf2 {[%emt 0:00:13]} Kd7 {[%emt 0:00:18]} 33. Kf3 {[%emt 0:00:16]} Kd6 {[%emt 0:00:57]} 34. g4 {[%emt 0:01:03]} hxg4+ {[%emt 0:00:14]} 35. Kxg4 {[%emt 0:00:05]} Bc8 {[%emt 0:00:06]} 36. Bf4+ {[%emt 0:00:59]} Kc5 {[%emt 0:01:11]} 37. Kg5 {[%emt 0:00:14]} b5 {[%emt 0:00:41]} 38. axb5 {[%emt 0:00:21]} Ne3 {[%emt 0:00:27]} 39. h5 {[%emt 0:00:11]} Bf5 {[%emt 0:00:50]} 40. b6 {[%emt 0:00:00]} Kxb6 {[%emt 0:00:00]} 41. Bxd5 {[%emt 0:00:58]} Kc5 {[%emt 0:00:34]} 42. Be4 {[%emt 0:00:14]} Be6 {[%emt 0:00:40]} 43. h6 {[%emt 0:00:22]} Bg8 {[%emt 0:00:03]} 44. c3 {[%emt 0:00:41]} Nd1 {[%emt 0:00:18]} 45. cxd4+ {[%emt 0:00:17]} Kxd4 {[%emt 0:00:10]} 46. Kf6 {[%emt 0:00:06]} Nxb2 {[%emt 0:00:53]} 47. Be5+ {[%emt 0:00:06]} 1-0

[Event "FIDE WCCC G12 2018"]
[Site "Santiago de Compostela"]
[Date "2018.11.13"]
[Round "9"]
[White "Mahi Amit Doshi"]
[Black "Voriskova, Anna"]
[Result "1-0"]
[ECO "A46"]
[WhiteElo "1515"]
[BlackElo "1601"]
[Annotator "NA RC"]
[PlyCount "103"]
[EventDate "2018.11.04"]
[EventType "swiss"]
[EventCountry "ESP"]
[SourceTitle "playchess.com"]
[Source "ChessBase"]
[SourceQuality "1"]
[TimeControl "40/5400+30:1800+30"]

1. d4 {[%emt 0:00:00]} Nf6 {[%emt 0:00:00]} 2. Nf3 {[%emt 0:00:00]} e6 {[%emt 0:00:11]} 3. Bf4 {[%emt 0:00:18]} b6 {[%emt 0:00:46]} 4. e3 {[%emt 0:00:29]} Bb7 {[%emt 0:00:28]} 5. Bd3 {[%emt 0:00:41]} Be7 {[%emt 0:00:44]} 6. h3 {[%emt 0:00:08]} O-O {[%emt 0:01:17]} 7. O-O {[%emt 0:00:17]} d6 {[%emt 0:01:15]} 8. c4 {[%emt 0:01:42]} Nbd7 {[%emt 0:01:31]} 9. Nc3 {[%emt 0:01:04]} c5 {[%emt 0:01:59]} 10. Rc1 {[%emt 0:09:08]} cxd4 {[%emt 0:04:25]} 11. exd4 {[%emt 0:00:55]} d5 {[%emt 0:04:36]} 12. cxd5 {[%emt 0:01:43]} Nxd5 {[%emt 0:06:05]} 13. Nxd5 {[%emt 0:00:55]} Bxd5 {[%emt 0:02:17]} 14. Bc7 {[%emt 0:03:23]} Qe8 {[%emt 0:01:07]} 15. Bb5 {[%emt 0:01:22]} a6 {[%emt 0:00:30]} 16. Bxd7 {[%emt 0:00:30]} Qxd7 {[%emt 0:02:47]} 17. Ne5 {[%emt 0:18:54]} Qe8 {[%emt 0:00:56]} 18. Bxb6 {[%emt 0:05:35]} Rb8 {[%emt 0:07:27]} 19. Ba7 {[%emt 0:10:25]} Rxb2 {[%emt 0:03:36]} 20. a4 {[%emt 0:02:03]} Qa8 {[%emt 0:03:55]} 21. Bc5 {[%emt 0:01:54]} Bxc5 {[%emt 0:00:30]} 22. dxc5 {[%emt 0:00:30]} Bxg2 {[%emt 0:09:40]} 23. Re1 {[%emt 0:04:12]} Bxh3 {[%emt 0:23:15]} 24. c6 {[%emt 0:01:54]} Rbb8 {[%emt 0:08:07]} 25. Nd7 {[%emt 0:01:21]} Rbd8 {[%emt 0:00:31]} 26. Kh2 {[%emt 0:06:48]} Bf5 {[%emt 0:07:41]} 27. c7 {[%emt 0:01:08]} Rxd7 {[%emt 0:01:38]} 28. Qxd7 {[%emt 0:00:44]} Qf3 {[%emt 0:00:35]} 29. Qc6 {[%emt 0:08:37]} Qxf2+ {[%emt 0:02:33]} 30. Qg2 {[%emt 0:02:47]} Qh4+ {[%emt 0:01:28]} 31. Kg1 {[%emt 0:00:10]} Qd4+ {[%emt 0:00:23]} 32. Qf2 {[%emt 0:01:19]} Qg4+ {[%emt 0:00:30]} 33. Qg2 {[%emt 0:01:31]} Qd4+ {[%emt 0:00:09]} 34. Kh1 {[%emt 0:01:22]} Qh4+ {[%emt 0:00:17]} 35. Qh2 {[%emt 0:01:24]} Be4+ {[%emt 0:00:34]} 36. Rxe4 {[%emt 0:02:00]} Qxe4+ {[%emt 0:00:07]} 37. Qg2 {[%emt 0:00:33]} Qh4+ {[%emt 0:00:47]} 38. Kg1 {[%emt 0:00:04]} Qd4+ {[%emt 0:00:08]} 39. Qf2 {[%emt 0:00:34]} Qg4+ {[%emt 0:00:53]} 40. Kf1 {[%emt 0:00:00]} Qh3+ {[%emt 0:00:00]} 41. Ke2 {[%emt 0:02:35]} Qh5+ {[%emt 0:00:48]} 42. Kd3 {[%emt 0:01:42]} Qd5+ {[%emt 0:00:43]} 43. Kc3 {[%emt 0:00:50]} h6 {[%emt 0:03:41]} 44. Qd4 {[%emt 0:01:41]} Qf3+ {[%emt 0:02:51]} 45. Kb4 {[%emt 0:00:49]} Qb7+ {[%emt 0:01:26]} 46. Ka5 {[%emt 0:00:36]} Qc8 {[%emt 0:03:35]} 47. Qd6 {[%emt 0:01:47]} Qa8 {[%emt 0:03:14]} 48. Rc6 {[%emt 0:01:27]} Rc8 {[%emt 0:03:25]} 49. Rb6 {[%emt 0:01:53]} Rxc7 {[%emt 0:05:04]} 50. Qxc7 {[%emt 0:00:44]} Qd5+ {[%emt 0:04:46]} 51. Kxa6 {[%emt 0:00:28]} e5 {[%emt 0:00:17]} 52. Qc8+ {[%emt 0:00:48]} 1-0

[Event "FIDE WCCC G12 2018"]
[Site "Santiago de Compostela"]
[Date "2018.11.13"]
[Round "9"]
[White "Gulieva, Karina"]
[Black "Francisco Guecamburu, Candela Be"]
[Result "1/2-1/2"]
[ECO "A00"]
[WhiteElo "1475"]
[BlackElo "1725"]
[Annotator "NA RC"]
[PlyCount "78"]
[EventDate "2018.11.04"]
[EventType "swiss"]
[EventCountry "ESP"]
[SourceTitle "playchess.com"]
[Source "ChessBase"]
[SourceQuality "1"]
[TimeControl "40/5400+30:1800+30"]

1. Nh3 {[%emt 0:00:00]} d5 {[%emt 0:00:00]} 2. c4 {[%emt 0:00:00]} e6 {[%emt 0:00:23]} 3. e3 {[%emt 0:00:02]} Nf6 {[%emt 0:00:13]} 4. d4 {[%emt 0:00:11]} c6 {[%emt 0:00:22]} 5. Be2 {[%emt 0:00:51]} Bd6 {[%emt 0:00:19]} 6. c5 {[%emt 0:00:57]} Bc7 {[%emt 0:00:11]} 7. O-O {[%emt 0:01:17]} O-O {[%emt 0:01:07]} 8. Nc3 {[%emt 0:01:23]} e5 {[%emt 0:06:35]} 9. Kh1 {[%emt 0:04:51]} Qe7 {[%emt 0:07:28]} 10. b4 {[%emt 0:05:05]} Re8 {[%emt 0:14:11]} 11. a4 {[%emt 0:09:42]} h6 {[%emt 0:11:08]} 12. Ng1 {[%emt 0:09:24]} Nbd7 {[%emt 0:06:37]} 13. b5 {[%emt 0:03:46]} Nf8 {[%emt 0:05:37]} 14. Bb2 {[%emt 0:10:47]} e4 {[%emt 0:05:04]} 15. a5 {[%emt 0:01:52]} Bf5 {[%emt 0:07:57]} 16. b6 {[%emt 0:03:41]} Bd8 {[%emt 0:01:25]} 17. Nh3 {[%emt 0:03:39]} Qd7 {[%emt 0:05:53]} 18. Nf4 {[%emt 0:01:19]} g5 {[%emt 0:00:41]} 19. Nh5 {[%emt 0:00:23]} Nxh5 {[%emt 0:00:22]} 20. Bxh5 {[%emt 0:00:06]} Bg6 {[%emt 0:00:13]} 21. h3 {[%emt 0:02:06]} f5 {[%emt 0:02:12]} 22. Kh2 {[%emt 0:04:18]} Qf7 {[%emt 0:01:53]} 23. Bxg6 {[%emt 0:00:15]} Nxg6 {[%emt 0:00:06]} 24. Qe2 {[%emt 0:02:40]} Rf8 {[%emt 0:03:29]} 25. f3 {[%emt 0:01:39]} exf3 {[%emt 0:04:23]} 26. Rxf3 {[%emt 0:00:44]} Qd7 {[%emt 0:02:11]} 27. Rf2 {[%emt 0:01:30]} Kg7 {[%emt 0:00:41]} 28. Raf1 {[%emt 0:01:29]} Be7 {[%emt 0:03:42]} 29. Qd3 {[%emt 0:02:43]} axb6 {[%emt 0:02:10]} 30. axb6 {[%emt 0:00:16]} f4 {[%emt 0:00:15]} 31. exf4 {[%emt 0:01:16]} Nxf4 {[%emt 0:01:16]} 32. Qd2 {[%emt 0:00:52]} Bf6 {[%emt 0:03:14]} 33. Ne2 {[%emt 0:00:40]} Nxe2 {[%emt 0:00:35]} 34. Qxe2 {[%emt 0:00:12]} Qe7 {[%emt 0:00:54]} 35. Qxe7+ {[%emt 0:00:14]} Bxe7 {[%emt 0:00:05]} 36. Rxf8 {[%emt 0:00:02]} Bxf8 {[%emt 0:00:10]} 37. Ra1 {[%emt 0:00:37]} Rxa1 {[%emt 0:00:22]} 38. Bxa1 {[%emt 0:00:01]} Kf6 {[%emt 0:00:43]} 39. g4 {[%emt 0:00:15]} Ke6 {[%emt 0:00:38]} 1/2-1/2